Cogmind - Beta 14 @@@ ROGUE MODE // 2024.10.16 @ 19:24:52 Player: Kate+Gabe4evr Result: Destroyed by Y-45 Defender with Beam Rifle Performance ------------- Evolutions (1) 500 Regions Visited (2) 400 Robots Destroyed (27) 135 Value Destroyed (545) 545 Prototype IDs (0) 0 Alien Tech Used (0) 0 Bonus (18) 18 TOTAL SCORE: 1598 Bonus ------- High Alert Combat Kills 18 Cogmind --------- Core Integrity 0/400 Matter 216/300 Energy 99/100 System Corruption 3% Temperature Cool (9) Movement Core (100) Ox1 Location -9/Materials Parts ------- > --- POWER (1) -------- (None) > --- PROPULSION (4) --- (None) > --- UTILITY (2) ------ Small Storage Unit > --- WEAPON (2) ------- (None) > --- INVENTORY (8) ---- Aluminum Leg Aluminum Leg Aluminum Leg Terrain Scan Processor Light Armor Plating Mini Grenade Launcher Mini Grenade Launcher Plasma Cutter Peak State ------------ > --- POWER ------------ Light Nuclear Core > --- PROPULSION ------- Aluminum Leg Aluminum Leg Aluminum Leg Aluminum Leg > --- UTILITY ---------- Small Storage Unit Light Armor Plating > --- WEAPON ----------- EM Pulse Gun Assault Rifle > --- INVENTORY -------- Ion Engine Aluminum Leg Aluminum Leg Mini Grenade Launcher [Rating: 11] Favorites ----------- Power Ion Engine Engine Ion Engine Power Core Light Nuclear Core Propulsion Aluminum Leg Leg Aluminum Leg Utility Small Storage Unit Storage Small Storage Unit Protection Light Armor Plating Weapon EM Pulse Gun Energy Gun EM Pulse Gun Ballistic Gun Assault Rifle Launcher Mini Grenade Launcher Special Weapon Plasma Cutter Build | -11 -10 -9 ------- Run | Yrd Mat Mat Slots Evolved 2 | . . 2 Power . | . . . Propulsion 2 | . . 2 Utility . | . . . Weapon . | . . . Parts Attached 37 | 6 14 17 Power 6 | 1 4 1 Engine 5 | 1 3 1 Core 1 | . 1 . Reactor . | . . . Propulsion 12 | 2 5 5 Treads . | . . . Leg 12 | 2 5 5 Wheel . | . . . Hover . | . . . Flight . | . . . Utility 3 | 1 1 1 Device . | . . . Storage 1 | 1 . . Processor . | . . . Hackware . | . . . Protection 2 | . 1 1 Artifact . | . . . Weapon 16 | 2 4 10 Energy Gun 8 | 2 4 2 Energy Cannon . | . . . Ballistic Gun 2 | . . 2 Ballistic Cannon . | . . . Launcher 4 | . . 4 Special Weapon 2 | . . 2 Impact Weapon . | . . . Slashing Weapon . | . . . Piercing Weapon . | . . . Special Melee Weapon . | . . . Unidentified Prototypes . | . . . Corrupted Parts 1 | . . 1 System Corruption 3 | . . 3 Parts Lost 12 | . 1 11 Power 3 | . 1 2 Propulsion 5 | . . 5 Utility 1 | . . 1 Weapon 3 | . . 3 Highest Loss Streak 7 | . 1 7 To Critical Strikes . | . . . Average Slot Usage (%) 79 | . 82 76 Engine 7 | . 11 4 Core 2 | . 2 3 Leg 30 | . 27 31 Storage 12 | . 14 11 Protection 5 | . . 8 Energy Gun 17 | . 26 11 Launcher 1 | . . 2 Peak Build Rating 11 | 6 9 11 Average Rating 7 | 4 6 8 On Entrance 5 | . 6 9 Naked Turns . | . . . Heaviest Build 17 | 14 17 17 Greatest Support 40 | 20 20 40 Greatest Overweight (x) 1 | 1 1 1 Average Overweight (x) . | . . . Largest Inventory Capacity 8 | 8 8 8 Average Capacity 7 | 7 8 8 Most Carried 8 | 2 6 8 Average Carried 5 | 1 2 7 Final Capacity 8 | 8 8 8 Final Carried 8 | 2 6 8 Class Distribution -------------------- 59% | Mutant 40% | Scavenger-Mutant Dominant Class ---------------- Mutant | -10/Materials Scavenger-Mutant | -9/Materials Resources | -11 -10 -9 ----------- Run | Yrd Mat Mat Matter Collected 540 | 155 142 243 Remotely . | . . . Salvage Created 512 | . 142 370 Parts 50 | . 7 43 Haulers Intercepted . | . . . Recyclers Shooed 1 | . 1 . Parts Field Recycled . | . . . Retrieved Matter . | . . . Parts Self-Destructed . | . . . Prevented . | . . . Kills | -11 -10 -9 ------- Run | Yrd Mat Mat Combat Hostiles Destroyed 26 | . 3 23 Guns 10 | . 3 7 AOE 16 | . . 16 Classes Destroyed 4 | . 1 3 Builder 1 | . . 1 Swarmer 17 | . . 17 Grunt 8 | . 3 5 Sentry 1 | . . 1 Best Kill Streak 9 | . 2 9 Combat Bots Only 8 | . 2 8 Max Kills in Single Turn 4 | . 1 4 Gunslinging . | . . . Exploded 3 | . . 3 Melee . | . . . Uniques/NPCs Destroyed . | . . . Combat | -11 -10 -9 -------- Run | Yrd Mat Mat Hostile Shots Fired 239 | . 19 220 Missed 95 | . 9 86 Damage Taken 1577 | . 152 1425 Core 431 | . 26 405 Absorbed by Shields . | . . . Core Remaining (%) 94 | 100 89 . Volleys Fired 39 | . 9 30 Largest 2 | . 2 2 Hottest 80 | . 80 80 Shots Fired 59 | . 18 41 Gun 50 | . 18 32 Cannon . | . . . Launcher 9 | . . 9 Special . | . . . Kinetic 4 | . . 4 Thermal 17 | . . 17 Explosive 9 | . . 9 Electromagnetic 29 | . 18 11 Robot Hit Streak 8 | . 5 8 Robot Miss Streak 3 | . 1 3 Penetration Max . | . . . Secondary Targets . | . . . Shots Hit Robots 42 | . 12 30 Core Hits 39 | . 7 32 Critical Kills . | . . . Critical Parts Destroyed . | . . . Critical Strikes . | . . . Melee Attacks . | . . . Impact . | . . . Slashing . | . . . Piercing . | . . . Sneak Attacks . | . . . Combat Hostiles . | . . . Follow-up Attacks . | . . . Damage Inflicted 1604 | . 164 1440 Guns 453 | . 164 289 Cannons . | . . . Explosions 1151 | . . 1151 Melee . | . . . Ramming . | . . . Kinetic 49 | . . 49 Thermal 206 | . . 206 Explosive 1089 | . . 1089 Electromagnetic 260 | . 164 96 Impact . | . . . Slashing . | . . . Piercing . | . . . Highest Corruption 3 | . . 3 Average Corruption 3 | . . 3 Corruption Purged . | . . . Corruption Blocked . | . . . Effects 7 | . . 7 Matter Fused 2 | . . 2 Heat Flow Errors 1 | . . 1 Energy Discharges 2 | . . 2 Data Loss (major) 2 | . . 2 Overload Shots . | . . . Overflow Damage 76 | . . 76 Projectiles . | . . . Explosions 76 | . . 76 Melee . | . . . Knockbacks . | . . . Impact . | . . . Kinetic . | . . . Secondary . | . . . Self-Inflicted Damage 63 | . . 63 Shots 2 | . . 2 Rammed . | . . . Targets Rammed . | . . . Kicked . | . . . Crushed . | . . . Highest Temperature 152 | . 105 152 Average Temperature 43 | . 52 39 Received Heat Transfer 423 | . 72 351 Siege Activations . | . . . Robots Corrupted . | . . . Combat Hostiles . | . . . Parts Fried . | . . . Impact Corruptions . | . . . Robots Melted . | . . . Combat Hostiles . | . . . Parts Melted . | . . . Heat Transferred 425 | . . 425 Parts Sabotaged . | . . . Parts Stolen . | . . . Parts Stripped . | . . . Power Chain Reactions 1 | . . 1 Alert | -11 -10 -9 ------- Run | Yrd Mat Mat Peak Influence 726 | . 94 726 Initial 39 | . . 39 Average 246 | . 37 401 Maximum Alert Level 3 | . . 3 Low Security (%) 54 | 100 100 22 Level 1 11 | . . 20 Level 2 30 | . . 51 Level 3 2 | . . 5 Level 4 . | . . . Level 5 . | . . . High Security . | . . . Max Security . | . . . Squads Dispatched 5 | . 1 4 Investigation 2 | . . 2 Extermination . | . . . Reinforcement 3 | . 1 2 Assault . | . . . Garrison . | . . . Intercept . | . . . Searches Triggered . | . . . Construction Impeded . | . . . Haulers Reinforced . | . . . Active Scanning Responses . | . . . Cargo Convoy Interrupts . | . . . Stealth | -11 -10 -9 --------- Run | Yrd Mat Mat Distress Signals 6 | . 1 5 Communications Jammed . | . . . Distress Signals . | . . . Times Spotted 63 | . 8 55 Peak Tracking Total 14 | . 3 14 Tactical Retreats 6 | . . 6 Traps | -11 -10 -9 ------- Run | Yrd Mat Mat Traps Triggered 4 | . 3 1 Indirectly . | . . . Trap Hack Attempts . | . . . Triggered . | . . . Disarmed . | . . . Reprogrammed . | . . . Reused . | . . . Traps Extracted . | . . . Installed . | . . . Triggered . | . . . Machines | -11 -10 -9 ---------- Run | Yrd Mat Mat Machines Disabled 4 | . . 4 Max in Single Turn 1 | . . 1 Machines Repaired . | . . . Machines Dismantled . | . . . Machines Sabotaged . | . . . Overloaded Fab Kills . | . . . Hacking | -11 -10 -9 --------- Run | Yrd Mat Mat Machines Accessed 3 | . 2 1 Terminals 3 | . 2 1 Fabricators . | . . . Repair Stations . | . . . Recycling Units . | . . . Scanalyzers . | . . . Garrison Access . | . . . Total Hacks 6 | . 4 2 Successful 3 | . 3 . Failed 3 | . 1 2 Catastrophic . | . . . Database Lockouts . | . . . Manual 6 | . 4 2 Terminals 6 | . 4 2 Fabricators . | . . . Repair Stations . | . . . Recycling Units . | . . . Scanalyzers . | . . . Garrison Access . | . . . Terminal Hacks . | . . . Fabricator Hacks . | . . . Repair Station Hacks . | . . . Recycling Unit Hacks . | . . . Scanalyzer . | . . . Garrison Access Hacks . | . . . Unauthorized Hacks 3 | . 3 . Terminals 3 | . 3 . Botnet 2 | . 2 . Operators 1 | . 1 . Fabricators . | . . . Repair Stations . | . . . Recycling Units . | . . . Scanalyzers . | . . . Garrison Access . | . . . Data Cores Recovered . | . . . Used . | . . . Hacking Detections 3 | . 2 1 Full Trace Events 1 | . . 1 Feedback Events . | . . . Feedback Blocked . | . . . Robot Schematics Acquired . | . . . Robots Built . | . . . Authchips . | . . . Time . | . . . Total Robot Build Rating . | . . . Part Schematics Acquired . | . . . Parts Built . | . . . Authchips . | . . . Time . | . . . Total Part Build Rating . | . . . Parts Repaired . | . . . Time . | . . . Parts Recycled . | . . . Recycled Matter . | . . . Retrieved Matter . | . . . Retrieved Components . | . . . Parts Scanalyzed . | . . . Part Schematics Acquired . | . . . Parts Damaged . | . . . Bothacking | -11 -10 -9 ------------ Run | Yrd Mat Mat Used RIF Installer . | . . . Robots Hacked . | . . . Non-combat . | . . . Combat . | . . . Robot Hacks Applied . | . . . Relay Couplers Released . | . . . Fabnet Peak Effective % . | . . . Robots Rewired . | . . . Allies Hacked . | . . . Hacks Repelled . | . . . Allies | -11 -10 -9 -------- Run | Yrd Mat Mat Total Allies . | . . . Largest Group . | . . . Highest-Rated Group . | . . . Highest-Rated Ally . | . . . Total Orders . | . . . Ally Attacks . | . . . Total Damage . | . . . Kills . | . . . Allies Corrupted . | . . . Allies Melted . | . . . Intel | -11 -10 -9 ------- Run | Yrd Mat Mat Robot Analysis Total . | . . . Derelict Logs Recovered . | . . . Drone Launches . | . . . Drone Recoveries . | . . . Exploration | -11 -10 -9 ------------- Run | Yrd Mat Mat Turns Passed 780 | 67 257 456 Spaces Moved 497 | 46 158 293 Core 66 | 11 . 55 Treads . | . . . Legs 431 | 35 158 238 Wheels . | . . . Hover . | . . . Flight . | . . . Fastest Speed 50 | 50 120 100 Average Speed 117 | 114 121 116 Slowest Speed 190 | 120 190 120 Overloaded Moves . | . . . Propulsion Burnouts . | . . . Robots Hopped . | . . . Cave-ins Triggered . | . . . Exploration Rate (%) 26 | 4 41 35 Regions Visited 2 Branch Regions . Pre-discovered Areas . | . . . Known Exits Taken . | . . . Unknown Exits Taken 2 | 1 1 . Scrap Searched . | . . . Spaces Dug . | . . . Terrain Destroyed 54 | . . 54 Melee . | . . . Projectile . | . . . AOE 54 | . . 54 Terrain Rammed . | . . . Walls Destroyed . | . . . Machines Disabled . | . . . Actions | -11 -10 -9 --------- Run | Yrd Mat Mat Total 622 | 57 199 366 Wait 30 | 4 17 9 Move 495 | 45 157 293 Hop . | . . . Pick Up 11 | 2 2 7 Fast Attach 19 | 6 9 4 Attach 6 | . 1 5 Detach 2 | . . 2 Swap 12 | . 4 8 Drop 7 | . . 7 Fire 39 | . 9 30 Melee . | . . . Ram . | . . . Kick . | . . . Crush . | . . . Escape Stasis . | . . . Rewire . | . . . Trap . | . . . Miscellaneous 1 | . . 1 Route ------- -11/Scrapyard -10/Materials -9/Materials (discovered 1 exit: [*Min]) History --------- Turn | Location | Event 32 | -11/Scrapyard | Discovered new exit (range 15) 68 | -11/Scrapyard | Entered Materials 235 | -10/Materials | Discovered new exit (range 16) 305 | -10/Materials | Build established: Mutant 325 | -10/Materials | Entered another Materials area 325 | -9/Materials | Evolved 2 slots: Propulsion x2 544 | -9/Materials | Destroyed 8 combat bots 566 | -9/Materials | Discovered new exit (range 15) 700 | -9/Materials | Build established: Scavenger-Mutant 739 | -9/Materials | Core integrity fell below 50% 752 | -9/Materials | Core integrity fell below 20% 756 | -9/Materials | Lost 7 parts (1p4n1u1w) 781 | -9/Materials | Destroyed by Y-45 Defender with Beam Rifle Last Messages --------------- 00678_ Dropped Mni. Grenade Launcher. 00679_ Dropped Assault Rifle. 00679_ Acquired Mni. Grenade Launcher. 00686_ Aluminum Leg destroyed. 00690_ K-01 Serf collects debris. 00693_ The unstable cave ceiling collapses. 00697_ Ion Engine destroyed. 00699_ Lgt. Armor Plating destroyed. 00703_ Aluminum Leg destroyed. 00705_ K-01 Serf collects debris. 00719_ W-16 Scout sends out distress signal. 00722_ Aluminum Leg destroyed. 00725_ Sml. Laser destroyed. 00730_ Critical hit (Burn: +37). 00739_ S-10 Pest destroyed. 00744_ K-01 Serf collects debris. 00766_ Acquired Mni. Grenade Launcher. 00768_ S-10 Pest destroyed. 00771_ Dropped Aluminum Leg. 00773_ U-05 Engineer lays Concrete. Map ----- +----------------------------------------------------+ | #???#!! #?????????????????????????????????? | | #???#"" #?????????????????????????????????? | | ####???#" #?????????????????????????????????? | | #?????#### ###########????????????????????????? | | #????##! # #????????????????????????? | | #????#! [ + #????????????????????????? | | #????#! %=# #????????????????????????? | | #????#! # #????????????????????????? | | #????#! # ! #????????????????????????? | | ##???##! # #????????????????????????? | | #????#### # = #????????????????????????? | | ##???????# + #????????????????????????? | | #????????# ###########????????????????????????? | | #????????# #########??????????????????????????? | | #????????# # #??????????????????????????? | | ?????????# / #??????????????????????????? | | ##????????# # #??????????????????????????? | | ?????????## #########??????????????????????????? | | ?????????# #?????????????#???????????????????? | | ????"""" # #???????????? #???????????????????? | | ????"""" + #???????????? #???????????????????? | | ????"""" # #??????????? ????????????????????? | | ?????"???# #??????????? ?????????????????????? | | ?????????## ##?????????? #?????????????????????? | | ??????????# ##/#########Y#?????????????????????? | | ???????#### gg @ #?????????????????????? | | g Y #?????????????????????? | | ?# ##### *%%*=u####?????????????????????? | | ??????????##+#######[ #????????????????????????? | | ?????????????????## #????????????????????????? | | ?????????????????# #????????????????????????? | | ?????????????????## # #?????????????????????? | | ??????????????????# # T ??????????????????????? | | ??????????????????# = # #?????????????????????? | | ??????????????????# # #?????????????????????? | | ??????????????????# # ?!#?????????????????????? | | ??????????????????# # ? #?????????????????????? | | ??????????????????# # ?#?????????????????????? | | ??????????????????#######+???????????????????????? | | ?????????????????????????????????????????????????? | | ?????????????????????????????????????????????????? | | ?????????????????????????????????????????????????? | | ?????????????????????????????????????????????????? | | ?????????????????????????????????????????????????? | | ?????????????????????????????????????????????????? | | ?????????????????????????????????????????????????? | | ?????????????????????????????????????????????????? | | ?????????????????????????????????????????????????? | | ?????????????????????????????????????????????????? | | ?????????????????????????????????????????????????? | +----------------------------------------------------+ Best States ------------- Heat Dissipation 28 Energy Generation 14 Energy Capacity 250 Matter Stores 277 Matter Capacity 300 Sight Range 16 Terrain Scan Density 10 Armor Coverage 150 Evasion (%) 55 Item Schematics ----------------- None Robot Schematics ------------------ None Fabricated ------------ Nothing Alien Tech Used ----------------- None Achievements -------------- None Challenges ------------ None Game ------ Seed ZhirovAlertPerforator Manual? 0 Play Time 00:13:26 Cumulative 36.1 hours Start 2024.10.16 @ 19:13:37 End 2024.10.16 @ 19:24:52 Sessions 1 Manual Loads 0 Difficulty Rogue Special Mode None Game No. 64 Rogue 64 Adventurer 0 Explorer 0 Win Type - Total 1 Types 1/0/0/0/0/0/0/0/0 Lore% 17 Gallery% 41 Achievement% 38 Wizard Run 0 Options --------- Layout 0 ASCII 0 Keyboard 1 Movement Numpad Keybinds 0 Fullscreen 2 Font 24/Terminus Map View 76x50 Zoom Use 0% Tactical HUD 1 Map Filters NONE Filters NONE Steam 1 RUN: 001989f2-ad3f-44e0-9f41-1ec287bd5be6